bitfinex-derivatives/quotes_BTCF0:USTF0_20251215
["timestamp","ask_amount","ask_price","bid_price","bid_amount"]
[1765806188854,0.1922921,89510.0,89509.0,0.7678]
[1765806189247,0.18112,89510.0,89509.0,0.7678]
[1765806189649,0.18112,89510.0,89509.0,0.90366021]
[1765806190453,0.18112,89510.0,89509.0,0.93268021]
[1765806190649,0.09112,89510.0,89509.0,0.93268021]
[1765806190854,0.1022913,89517.0,89516.0,0.09406]
[1765806191050,0.11112,89517.0,89516.0,0.1052314]
[1765806191259,0.11112,89517.0,89516.0,0.1342514]
[1765806191762,0.00016758,89518.0,89517.0,0.09406]
[1765806191963,0.00016758,89518.0,89517.0,0.45486]
[1765806192158,0.1022896,89531.0,89530.0,0.09406]
[1765806192352,0.2822896,89531.0,89530.0,0.45486]
[1765806194768,0.2882896,89531.0,89530.0,0.4660296]
[1765806194963,0.2972896,89531.0,89530.0,0.4670296]
[1765806195152,0.2972896,89531.0,89530.0,0.45586]
[1765806200272,0.24063,89531.0,89530.0,0.48488]
[1765806200569,0.28612,89531.0,89530.0,0.45586]
[1765806201166,0.28612,89531.0,89530.0,0.3618]
[1765806202169,0.28612,89531.0,89530.0,0.45586]
[1765806202771,0.28612,89531.0,89530.0,0.3618]
[1765806204160,0.28612,89531.0,89530.0,0.45586]
[1765806208278,0.28612,89531.0,89530.0,0.4670296]
[1765806208980,0.28612,89531.0,89530.0,0.45586]
[1765806213365,0.195,89531.0,89530.0,0.45586]
[1765806213565,0.065,89531.0,89530.0,0.45586]
[1765806213776,0.195,89531.0,89530.0,0.45586]
[1765806214165,0.17178,89531.0,89530.0,0.45586]
[1765806214880,0.063,89531.0,89530.0,0.45586]
[1765806216066,0.054,89531.0,89530.0,0.45586]
[1765806216273,0.061,89531.0,89530.0,0.45586]
[1765806216581,0.0374706,89531.0,89530.0,0.45586]
[1765806220084,0.0334706,89531.0,89530.0,0.45586]
[1765806220991,0.2527806,89531.0,89530.0,0.45586]
[1765806221387,0.0334706,89531.0,89530.0,0.45586]
[1765806221779,0.0294706,89531.0,89530.0,0.45586]
[1765806224185,0.0294706,89531.0,89530.0,0.81666]
[1765806225287,0.0294706,89531.0,89530.0,0.88152]
[1765806226277,0.003,89531.0,89530.0,0.88152]
[1765806230592,0.10978,89531.0,89530.0,0.88152]
[1765806231191,0.003,89531.0,89530.0,0.88152]
[1765806236391,0.22231,89531.0,89530.0,0.81666]
[1765806236586,0.42231,89531.0,89530.0,0.81666]
[1765806237596,0.41231,89531.0,89530.0,0.81666]
[1765806241897,0.4234795,89531.0,89530.0,0.81666]
[1765806242103,0.44925176,89531.0,89530.0,0.7226]
[1765806244199,0.44925176,89531.0,89530.0,0.82769]
[1765806244602,0.4234795,89531.0,89530.0,0.82769]
[1765806244998,0.4234795,89531.0,89530.0,0.92756]
[1765806247895,0.4234795,89531.0,89530.0,0.9387296]
[1765806257204,0.4234795,89531.0,89530.0,0.92756]
[1765806257609,0.4234795,89531.0,89530.0,0.3618]
[1765806257610,0.4491629,89531.0,89530.0,0.3618]
[1765806257809,0.4491629,89531.0,89530.0,0.46689]
[1765806258112,0.4491645,89531.0,89530.0,0.46689]
[1765806258314,0.4491645,89531.0,89530.0,0.3618]
[1765806261307,0.4491645,89531.0,89530.0,0.46689]
[1765806263012,0.4491645,89531.0,89530.0,0.56676]
[1765806269015,0.4491645,89531.0,89530.0,0.20596]
[1765806274107,0.3366345,89531.0,89530.0,0.20596]
[1765806274305,0.4290445,89531.0,89530.0,0.20596]
[1765806274712,0.4290445,89531.0,89530.0,0.001]
[1765806274906,0.18553,89530.0,89529.0,0.3608]
[1765806275110,0.1967005,89523.0,89522.0,0.00016758]
[1765806275410,0.18553,89509.0,89508.0,0.4467]
[1765806275611,0.41240921,89509.0,89508.0,0.4467]
[1765806276013,0.41240921,89509.0,89508.0,0.5364]
[1765806277023,0.41240921,89509.0,89508.0,0.4497]
[1765806277324,0.3867022,89509.0,89508.0,0.5404]
[1765806277820,0.3867022,89509.0,89508.0,0.4497]
[1765806278016,0.3927022,89509.0,89508.0,0.4507]
[1765806278720,0.3927022,89509.0,89508.0,0.5404]
[1765806279119,0.3947022,89509.0,89508.0,0.5374]
[1765806281112,0.2091722,89509.0,89508.0,0.5374]
[1765806281521,0.0191722,89509.0,89508.0,0.5374]
[1765806281727,0.1991722,89509.0,89508.0,0.5374]
[1765806284924,0.3847022,89509.0,89508.0,0.5374]
[1765806286323,0.1991722,89509.0,89508.0,0.5374]
[1765806286823,0.3847022,89509.0,89508.0,0.5374]
[1765806293330,0.3847022,89509.0,89508.0,0.59017]
[1765806294416,0.3847022,89509.0,89508.0,0.5374]
[1765806295021,0.3847022,89509.0,89508.0,0.4477]
[1765806295530,0.3847022,89509.0,89508.0,0.5374]
[1765806296424,0.3847022,89509.0,89508.0,0.3618]
[1765806297032,0.3847022,89509.0,89508.0,0.4477]
[1765806297221,0.3847022,89509.0,89508.0,0.5374]
[1765806299129,0.41041087,89509.0,89508.0,0.3618]
[1765806299733,0.41041087,89509.0,89508.0,0.4477]
[1765806300529,0.41041087,89509.0,89508.0,0.3618]
[1765806300725,0.41041087,89509.0,89508.0,0.4477]
[1765806300922,0.41041087,89509.0,89508.0,0.5374]
[1765806301735,0.41041087,89509.0,89508.0,0.3618]
[1765806305134,0.1734032,89501.0,89500.0,0.00016758]
[1765806305447,0.1734044,89492.0,89491.0,0.51963]
[1765806305732,0.37913671,89492.0,89491.0,0.3608]
[1765806306138,0.1734049,89488.0,89487.0,0.44181]
[1765806306438,0.35913721,89488.0,89487.0,0.44181]
[1765806307028,0.35913721,89488.0,89487.0,0.51963]
[1765806307229,0.3334049,89488.0,89487.0,0.51963]
[1765806308638,0.3354049,89488.0,89487.0,0.52063]
[1765806309336,0.3334049,89488.0,89487.0,0.52263]
[1765806309539,0.3404049,89488.0,89487.0,0.52363]
[1765806310041,0.3404049,89488.0,89487.0,0.52063]
[1765806310237,0.3424049,89488.0,89487.0,0.52063]
[1765806310939,0.169,89488.0,89487.0,0.52063]
[1765806311139,0.022,89488.0,89487.0,0.88043]
[1765806311437,0.028,89488.0,89487.0,0.88143]
[1765806312032,0.027,89488.0,89487.0,0.88143]
[1765806312738,0.0111741,89495.0,89494.0,0.15883]
[1765806312937,0.0211741,89495.0,89494.0,0.15883]
[1765806313137,0.01,89495.0,89494.0,0.1700041]
[1765806314135,0.01,89495.0,89494.0,0.1710041]
[1765806314744,0.0111727,89506.0,89505.0,0.0603824]
[1765806315037,0.05,89506.0,89505.0,0.9408124]
[1765806316051,0.00016758,89514.0,89513.0,0.1700017]
[1765806316247,0.10016758,89514.0,89513.0,0.5308017]
[1765806316649,0.10016758,89514.0,89513.0,0.51963]
[1765806316845,0.18493758,89514.0,89513.0,0.51963]
[1765806317048,0.10016758,89514.0,89513.0,0.51963]
[1765806317957,0.10116758,89514.0,89513.0,0.51963]
[1765806318856,0.10516758,89514.0,89513.0,0.52063]
[1765806323153,0.00516758,89514.0,89513.0,0.52063]
[1765806324956,0.0111699,89528.0,89527.0,0.15883]
[1765806325145,0.0111699,89528.0,89527.0,0.5308]
[1765806325146,0.1811699,89528.0,89527.0,0.5308]
[1765806325343,0.3433999,89528.0,89527.0,0.51963]
[1765806326143,0.3463999,89528.0,89527.0,0.51963]
[1765806326753,0.3523999,89528.0,89527.0,0.52063]
[1765806327559,0.3493999,89528.0,89527.0,0.52063]
[1765806327859,0.1871699,89528.0,89527.0,0.52163]
[1765806329158,0.1831699,89528.0,89527.0,0.52063]
[1765806329753,0.1811699,89528.0,89527.0,0.52063]
[1765806331968,0.04,89528.0,89527.0,0.3618]
[1765806332154,0.04,89528.0,89527.0,0.52425]
[1765806333159,0.0111691,89535.0,89534.0,0.1692291]
[1765806333366,0.0111691,89535.0,89534.0,1.2287891]
[1765806333367,0.1011691,89535.0,89534.0,1.2287891]
[1765806333961,0.09,89535.0,89534.0,1.24497468]
[1765806335953,0.094,89535.0,89534.0,1.24497468]
[1765806338064,0.004,89535.0,89534.0,1.24497468]
[1765806340257,0.015169,89535.0,89534.0,1.24497468]
[1765806342968,0.004,89535.0,89534.0,1.24497468]
[1765806344855,0.094,89535.0,89534.0,1.24497468]
[1765806345061,0.004,89535.0,89534.0,1.24497468]
[1765806361478,0.197359,89535.0,89534.0,0.53504558]
[1765806361679,0.336679,89535.0,89534.0,0.53504558]
[1765806361869,0.337679,89535.0,89534.0,0.53504558]
[1765806362075,0.337679,89535.0,89534.0,1.07526558]
[1765806362979,0.336679,89535.0,89534.0,1.07626558]
[1765806369875,0.336679,89535.0,89534.0,1.22199558]
[1765806375481,0.32551,89535.0,89534.0,1.22199558]
[1765806377090,0.001,89535.0,89534.0,1.22199558]
[1765806377793,0.001,89535.0,89534.0,1.30232326]
[1765806377987,0.001,89535.0,89534.0,1.22199558]
[1765806379692,0.001,89535.0,89534.0,1.23316468]
[1765806388795,0.00016657,89536.0,89535.0,0.14573]
[1765806388996,0.00016657,89536.0,89535.0,0.22604575]
[1765806389498,0.64130549,89713.0,89535.0,0.22604575]
[1765806389499,0.04111,89555.0,89547.0,0.1568975]
[1765806389793,0.1528272,89554.0,89553.0,0.14573]
[1765806389987,0.3228272,89554.0,89553.0,0.14573]
[1765806392582,0.3258272,89554.0,89553.0,0.14573]
[1765806392991,0.3308272,89554.0,89553.0,0.14673]
[1765806395797,0.178,89554.0,89553.0,0.14673]
[1765806396100,0.30602,89554.0,89553.0,0.14673]
[1765806397295,0.30402,89554.0,89553.0,0.14573]
[1765806397789,0.30402,89554.0,89553.0,0.1568968]
[1765806397988,0.30402,89554.0,89553.0,0.14573]
[1765806398189,0.30402,89554.0,89553.0,0.07188]
[1765806398392,0.30402,89554.0,89553.0,0.83354]
[1765806398894,0.30302,89554.0,89553.0,0.83354]
[1765806399198,0.172,89554.0,89553.0,0.83354]
[1765806399391,0.23573,89554.0,89553.0,0.83354]
[1765806399699,0.30202,89554.0,89553.0,0.83354]
[1765806401302,0.23473,89554.0,89553.0,0.83354]
[1765806402398,0.30202,89554.0,89553.0,0.83354]
[1765806402590,0.30202,89554.0,89553.0,0.8447068]
[1765806403998,0.30202,89554.0,89553.0,0.13534]
[1765806404202,0.30202,89554.0,89553.0,0.8335]
[1765806404505,0.30202,89554.0,89551.0,0.3608]
[1765806404506,0.12802,89552.0,89551.0,0.42682]
[1765806404706,0.29802,89552.0,89551.0,0.3608]
[1765806405003,0.29802,89552.0,89551.0,1.05896]
[1765806406302,0.30102,89552.0,89551.0,1.05896]
[1765806406603,0.30202,89552.0,89551.0,1.05896]
[1765806415100,0.174,89552.0,89551.0,1.05896]
[1765806415304,0.144,89552.0,89551.0,1.05896]
[1765806415714,0.20473,89552.0,89551.0,1.05896]
[1765806416610,0.27202,89552.0,89551.0,1.05896]
[1765806416815,0.27202,89552.0,89551.0,0.3608]
[1765806417013,0.12802,89546.0,89545.0,0.00016758]
[1765806417320,0.3391876,89546.0,89545.0,0.49044758]
[1765806418204,0.3391876,89546.0,89545.0,0.49144758]
[1765806420410,0.3401876,89546.0,89545.0,0.49144758]
[1765806421608,0.1401876,89546.0,89545.0,0.49144758]
[1765806421810,0.061,89546.0,89545.0,0.52338758]
[1765806422009,0.001,89546.0,89545.0,0.52338758]
[1765806423119,0.001,89546.0,89545.0,0.60370333]
[1765806424504,0.001,89546.0,89545.0,0.52338758]
[1765806426718,0.15402,89570.0,89569.0,0.11956]
[1765806426923,0.34978806,89570.0,89569.0,0.48036]
[1765806427117,0.36095266,89570.0,89569.0,0.48036]
[1765806427423,0.3351846,89570.0,89569.0,0.48036]
[1765806428225,0.3451846,89570.0,89569.0,0.48136]
[1765806429123,0.3421846,89570.0,89569.0,0.48136]
[1765806429325,0.3391846,89570.0,89569.0,0.48036]
[1765806433119,0.3391846,89570.0,89569.0,0.4915248]
[1765806435312,0.3391846,89570.0,89569.0,0.48036]
[1765806436020,0.3358146,89570.0,89569.0,0.48036]
[1765806436928,0.3358146,89570.0,89569.0,0.4915248]
[1765806437123,0.3358146,89570.0,89569.0,0.48036]
[1765806438920,0.3358146,89570.0,89569.0,0.3608]
[1765806439114,0.3358146,89570.0,89569.0,1.05884]
[1765806443132,0.0111664,89556.0,89555.0,0.23912]
[1765806443319,0.3053564,89556.0,89555.0,0.8176]
[1765806443937,0.3053564,89556.0,89555.0,0.93716]
[1765806444129,0.3053564,89556.0,89555.0,0.87728]
[1765806444331,0.3053564,89556.0,89555.0,0.17924]
[1765806444533,0.3053564,89556.0,89555.0,0.18124]
[1765806444729,0.3053564,89556.0,89555.0,0.12156]
[1765806445234,0.3053564,89556.0,89555.0,0.12256]
[1765806446232,0.3053564,89556.0,89546.0,0.25120313]
[1765806446233,0.1253575,89547.0,89546.0,0.25120313]
[1765806446431,0.3253575,89547.0,89546.0,0.8176]
[1765806447533,0.3253575,89547.0,89546.0,0.8206]
[1765806448533,0.3253575,89547.0,89546.0,0.8236]
[1765806459242,0.3253575,89547.0,89546.0,1.13184142]
[1765806459243,0.08717,89547.0,89546.0,1.13184142]
[1765806459445,0.3047058,89561.0,89560.0,0.09864]
[1765806459650,0.3447058,89561.0,89560.0,0.79676]
[1765806460836,0.3447058,89561.0,89560.0,0.79776]
[1765806462844,0.3447058,89561.0,89560.0,0.69912]
[1765806463248,0.3447058,89561.0,89560.0,0.001]
[1765806464349,0.154707,89551.0,89550.0,0.27798289]
[1765806464650,0.334707,89551.0,89550.0,0.14627]
[1765806465438,0.1547075,89547.0,89546.0,0.76803]
[1765806465639,0.1547075,89547.0,89544.0,0.3608]
[1765806465640,0.14354,89546.0,89544.0,0.3608]
[1765806465953,0.31354,89546.0,89545.0,0.14643758]
[1765806466452,0.31354,89546.0,89545.0,0.07011758]
[1765806466853,0.31354,89546.0,89545.0,0.07311758]
[1765806467053,0.31354,89546.0,89545.0,0.14943758]
[1765806467355,0.31354,89546.0,89545.0,0.07311758]
[1765806467648,0.31354,89546.0,89545.0,0.14943758]
[1765806469054,0.31354,89546.0,89545.0,0.00316758]
[1765806469250,0.31354,89546.0,89545.0,0.00216758]
[1765806469455,0.33916227,89546.0,89545.0,0.07311758]
[1765806469958,0.31354,89546.0,89545.0,0.07311758]
[1765806470252,0.33916436,89546.0,89545.0,0.07311758]
[1765806470645,0.33916436,89546.0,89545.0,0.07211758]
[1765806470646,0.34316436,89546.0,89545.0,0.07211758]
[1765806471453,0.34516436,89546.0,89545.0,0.14643758]
[1765806473248,0.31954,89546.0,89545.0,0.14643758]
[1765806473443,0.31554,89546.0,89545.0,0.14643758]
[1765806473653,0.31654,89546.0,89545.0,0.14643758]
[1765806474252,0.31354,89546.0,89545.0,0.14643758]
[1765806474449,0.31454,89546.0,89545.0,0.14643758]
[1765806477162,0.171,89546.0,89545.0,0.14643758]
[1765806477362,0.17,89546.0,89545.0,0.14643758]
[1765806477661,0.31354,89546.0,89545.0,0.14643758]
[1765806478046,0.31354,89546.0,89545.0,0.15760528]
[1765806478257,0.31354,89546.0,89545.0,0.15860528]
[1765806480056,0.24391,89546.0,89545.0,0.15860528]
[1765806480261,0.17,89546.0,89545.0,0.15860528]
[1765806480850,0.1811676,89546.0,89545.0,0.15860528]
[1765806481262,0.17,89546.0,89545.0,0.15860528]
[1765806482053,0.0884072,89554.0,89553.0,0.1446666]
[1765806482259,0.3351272,89554.0,89553.0,0.1446666]
[1765806484059,0.3361272,89554.0,89553.0,0.1446666]
[1765806486879,0.3351272,89554.0,89553.0,0.1446666]
[1765806487081,0.3361272,89554.0,89553.0,0.1446666]
[1765806489177,0.26,89568.0,89567.0,0.12198]
[1765806489178,0.11,89568.0,89567.0,0.12198]
[1765806489480,0.04562,89575.0,89570.0,0.12198]
[1765806489678,0.0022327,89578.0,89570.0,0.12198]
[1765806490678,0.0022327,89578.0,89570.0,0.21271544]
[1765806490875,0.01296998,89571.0,89570.0,0.21271544]
[1765806491282,0.01296998,89571.0,89570.0,0.12198]
[1765806492081,0.16692998,89571.0,89570.0,0.82022]
[1765806492382,0.17809448,89571.0,89570.0,0.82022]
[1765806493076,0.16992998,89571.0,89570.0,0.82022]
[1765806494785,0.16992998,89571.0,89570.0,0.91051798]
[1765806496085,0.01596998,89571.0,89570.0,0.91051798]
[1765806497084,0.09320998,89571.0,89570.0,0.91051798]
[1765806497685,0.01596998,89571.0,89570.0,0.91051798]
[1765806497986,0.01596998,89571.0,89570.0,1.27131798]
[1765806500888,0.01596998,89571.0,89570.0,1.28950798]
[1765806501089,0.01596998,89571.0,89570.0,1.47490798]
[1765806501282,0.19958,89600.0,89599.0,0.139681]
[1765806501480,0.36958,89600.0,89599.0,0.778881]
[1765806502679,0.22362,89600.0,89599.0,0.779881]
[1765806503391,0.178,89600.0,89599.0,0.779881]
[1765806503989,0.183,89600.0,89599.0,0.779881]
[1765806504185,0.33696,89600.0,89599.0,0.49032]
[1765806504487,0.33696,89600.0,89599.0,1.04428]
[1765806504694,0.2107419,89592.0,89591.0,0.12834747]
[1765806504989,0.3807419,89592.0,89591.0,0.94520636]
[1765806505191,0.3807419,89592.0,89591.0,0.21939197]
[1765806505496,0.3807419,89592.0,89591.0,0.82642747]
[1765806505880,0.3807419,89592.0,89591.0,0.76233747]
[1765806506084,0.3837419,89592.0,89591.0,0.06425747]
[1765806506290,0.3837419,89592.0,89591.0,0.76237747]
[1765806506489,0.3867419,89592.0,89591.0,0.76237747]
[1765806507097,0.3867419,89592.0,89591.0,0.06425747]
[1765806507688,0.3867419,89592.0,89591.0,0.24965747]
[1765806508089,0.3867419,89592.0,89591.0,0.31286747]
[1765806510396,0.2667419,89592.0,89591.0,0.31286747]
[1765806510985,0.2167419,89592.0,89591.0,0.31286747]
[1765806511191,0.4067419,89592.0,89591.0,0.31286747]
[1765806511395,0.4067419,89592.0,89591.0,0.18556747]
[1765806511599,0.4067419,89592.0,89591.0,0.00016747]
[1765806512698,0.1635429,89584.0,89583.0,0.64596]
[1765806512891,0.3535429,89584.0,89583.0,0.64596]
[1765806513290,0.3535429,89584.0,89583.0,0.70308]
[1765806514398,0.3555429,89584.0,89583.0,0.70308]
[1765806514901,0.3555429,89584.0,89583.0,0.771363]
[1765806515096,0.3575429,89584.0,89583.0,0.771363]
[1765806516094,0.34638,89584.0,89583.0,0.771363]
[1765806518001,0.34638,89584.0,89583.0,0.823363]
[1765806519498,0.3575429,89584.0,89583.0,0.823363]
[1765806523205,0.2820129,89584.0,89583.0,0.823363]
[1765806523502,0.3475429,89584.0,89583.0,0.823363]
[1765806523901,0.3475429,89584.0,89583.0,0.11424]
[1765806524208,0.1635431,89582.0,89581.0,0.3608]
[1765806524506,0.3435431,89582.0,89581.0,1.05347]
[1765806525409,0.3435431,89582.0,89581.0,1.0646333]
[1765806525908,0.33338,89582.0,89581.0,1.0646333]
[1765806526609,0.33538,89582.0,89581.0,1.0646333]
[1765806526800,0.20538,89582.0,89581.0,1.0646333]
[1765806527507,0.053,89582.0,89581.0,1.0646333]
[1765806527707,0.12985,89582.0,89581.0,1.2500333]
[1765806527908,0.34538,89582.0,89581.0,1.2500333]
[1765806528309,0.003,89582.0,89581.0,1.2500333]
[1765806537412,0.33538,89582.0,89581.0,1.32944]
[1765806538015,0.33538,89582.0,89581.0,0.63144]
[1765806538205,0.33538,89582.0,89581.0,1.3294]
[1765806540116,0.33538,89582.0,89581.0,1.32944]
[1765806540416,0.33538,89582.0,89581.0,1.3294]
[1765806541316,0.183,89582.0,89581.0,1.3294]
[1765806544314,0.25772,89582.0,89581.0,1.3294]
[1765806544518,0.32761,89582.0,89581.0,1.32936]
[1765806548528,0.32761,89582.0,89581.0,0.44604]
[1765806548725,0.32761,89582.0,89581.0,0.93236]
[1765806548926,0.32761,89582.0,89581.0,1.05868]
[1765806549828,0.32761,89582.0,89581.0,0.3608]
[1765806550028,0.35328718,89582.0,89581.0,1.05868]
[1765806550227,0.32761,89582.0,89581.0,1.05868]
[1765806551036,0.1557739,89576.0,89575.0,0.00016747]
[1765806551226,0.3357739,89576.0,89575.0,0.00016747]
[1765806551731,0.3357739,89576.0,89575.0,0.02598747]
[1765806551928,0.3357739,89576.0,89575.0,0.11491413]
[1765806553037,0.3357739,89576.0,89575.0,0.14073413]
[1765806553426,0.3357739,89576.0,89575.0,0.14173413]
[1765806556827,0.11992,89580.0,89579.0,0.04422]
[1765806557025,0.3809734,89580.0,89579.0,0.04422]
[1765806557231,0.3809734,89580.0,89579.0,0.0553835]
[1765806558037,0.3819734,89580.0,89579.0,0.04422]
[1765806558235,0.3829734,89580.0,89579.0,0.04422]
[1765806558936,0.3829734,89580.0,89579.0,0.02211]
[1765806559238,0.1557739,89576.0,89575.0,0.13037413]
[1765806559447,0.3557739,89576.0,89575.0,0.04144747]
[1765806559632,0.3557739,89576.0,89575.0,0.02080747]
[1765806560432,0.3557739,89576.0,89575.0,0.02180747]
[1765806560644,0.3557739,89576.0,89575.0,0.71980747]
[1765806562439,0.3557739,89576.0,89575.0,0.81110952]
[1765806562740,0.3557739,89576.0,89575.0,0.71980747]
[1765806563946,0.3557739,89576.0,89575.0,0.73825747]
[1765806567348,0.3557739,89576.0,89575.0,0.04025747]
[1765806569244,0.3557739,89576.0,89575.0,0.00116747]
[1765806570740,0.38144957,89576.0,89575.0,0.00116747]
[1765806571251,0.143365,89567.0,89566.0,0.15572249]
[1765806571446,0.313365,89567.0,89566.0,0.02408]
[1765806571952,0.313365,89567.0,89566.0,0.0352451]
[1765806572151,0.313365,89567.0,89566.0,0.12446646]
[1765806572341,0.313365,89567.0,89566.0,0.02608]
[1765806572543,0.313365,89567.0,89566.0,0.02808]
[1765806575754,0.313365,89567.0,89566.0,0.11940016]
[1765806576756,0.313365,89567.0,89566.0,0.13056526]
[1765806576944,0.313365,89567.0,89566.0,0.11940016]
[1765806579353,0.313365,89567.0,89566.0,0.13056526]
[1765806579556,0.313365,89567.0,89566.0,0.11940016]
[1765806579857,0.313365,89567.0,89566.0,0.13056526]
[1765806583049,0.313365,89567.0,89566.0,0.11940016]
[1765806584950,0.313365,89567.0,89566.0,0.81732016]
[1765806588854,0.03976,89568.0,89567.0,0.196565]
[1765806589055,0.04097,89570.0,89567.0,0.196565]
[1765806589353,0.04097,89570.0,89569.0,0.3608]
[1765806589956,0.04113747,89575.0,89574.0,0.0111641]
[1765806592950,0.04113747,89575.0,89574.0,0.0121641]
[1765806594856,0.10317747,89575.0,89574.0,0.0121641]
[1765806595358,0.16509747,89575.0,89574.0,0.0121641]
[1765806600564,0.16509747,89575.0,89574.0,0.7100441]
[1765806601263,0.35509747,89575.0,89574.0,0.7100441]
[1765806601656,0.16509747,89575.0,89574.0,0.7100441]
[1765806601967,0.33509747,89575.0,89574.0,0.7100441]
[1765806602162,0.16509747,89575.0,89574.0,0.8954441]
[1765806602363,0.35509747,89575.0,89574.0,0.8954441]
[1765806602762,0.16509747,89575.0,89574.0,0.8954441]
[1765806604362,0.35509747,89575.0,89574.0,0.8954441]
[1765806604562,0.16509747,89575.0,89574.0,0.8954441]
[1765806604959,0.32509747,89575.0,89574.0,0.8954441]
[1765806605267,0.32509747,89575.0,89574.0,0.69888]
[1765806606362,0.1239356,89562.0,89561.0,0.3608]
[1765806606560,0.123936,89559.0,89554.0,0.07994915]
[1765806606768,0.123936,89559.0,89553.0,0.1854]
[1765806606769,0.313936,89559.0,89558.0,0.69804747]
[1765806608861,0.313936,89559.0,89558.0,0.75494747]
[1765806609172,0.313936,89559.0,89558.0,0.90467435]
[1765806609763,0.313936,89559.0,89558.0,0.90767435]
[1765806609963,0.313936,89559.0,89558.0,0.91067435]
[1765806611670,0.313936,89559.0,89558.0,0.85128435]
[1765806612774,0.313936,89559.0,89558.0,0.91067435]
[1765806613164,0.313936,89559.0,89558.0,0.92184045]
[1765806613360,0.313936,89559.0,89558.0,0.91067435]
[1765806615268,0.313936,89559.0,89558.0,1.27147435]
[1765806618777,0.143936,89559.0,89558.0,1.27147435]
[1765806619180,0.13277,89559.0,89558.0,1.27147435]
[1765806619975,0.11277,89559.0,89558.0,1.28264045]
[1765806620174,0.30277,89559.0,89558.0,1.28264045]
[1765806620570,0.13277,89559.0,89558.0,1.28264045]
[1765806622885,0.07641,89559.0,89558.0,1.28264045]
[1765806623372,0.05641,89559.0,89558.0,1.28264045]
[1765806624180,0.0675755,89564.0,89563.0,0.1274555]
[1765806624486,0.1275755,89564.0,89563.0,0.1274555]
[1765806624683,0.1839355,89564.0,89563.0,0.1274555]
[1765806624985,0.11641,89564.0,89563.0,0.1274555]
[1765806625283,0.06,89564.0,89563.0,0.1274555]
[1765806625580,0.06,89564.0,89563.0,0.1314555]
[1765806625775,0.11641,89564.0,89563.0,0.1314555]
[1765806626178,0.31759,89564.0,89563.0,0.12029]
[1765806631780,0.3287554,89564.0,89563.0,0.1314555]
[1765806632487,0.3287554,89564.0,89563.0,0.3168555]
[1765806633690,0.3287554,89564.0,89563.0,0.30569]
[1765806633985,0.3287554,89564.0,89563.0,0.70196]
[1765806636087,0.3287554,89564.0,89563.0,0.004]
[1765806636282,0.3287554,89564.0,89563.0,0.6914]
[1765806636996,0.129266,89559.0,89558.0,0.36096747]
[1765806637185,0.1181,89552.0,89551.0,0.48288]
[1765806637498,0.2981,89552.0,89551.0,0.48288]
[1765806639292,0.2981,89552.0,89551.0,0.48488]
[1765806639794,0.2981,89552.0,89551.0,0.54299]
[1765806640592,0.2981,89552.0,89551.0,0.06111]
[1765806642094,0.2981,89552.0,89551.0,0.12194]
[1765806642294,0.2981,89552.0,89551.0,0.06111]
[1765806642697,0.2981,89552.0,89551.0,0.12194]
[1765806643381,0.33367,89552.0,89551.0,0.12194]
[1765806644189,0.3448369,89552.0,89551.0,0.12194]
[1765806647295,0.1648369,89552.0,89551.0,0.12194]
[1765806647597,0.3448369,89552.0,89551.0,0.12194]
[1765806647798,0.33367,89552.0,89551.0,0.12194]
[1765806647991,0.19367,89552.0,89551.0,0.12194]
[1765806648296,0.04,89552.0,89551.0,0.12194]
[1765806649086,0.15367,89560.0,89559.0,0.11894]
[1765806649288,0.33367,89560.0,89559.0,0.11894]
[1765806649492,0.3448359,89560.0,89559.0,0.130106]
[1765806651099,0.33367,89560.0,89559.0,0.130106]
[1765806651689,0.0111655,89563.0,89559.0,0.130106]
[1765806651889,0.0111655,89563.0,89562.0,0.1301056]
[1765806651890,0.2692655,89563.0,89562.0,0.1301056]
[1765806655004,0.2692655,89563.0,89562.0,0.4909056]
[1765806657505,0.2581,89563.0,89562.0,0.4909056]
[1765806657711,0.03,89563.0,89562.0,0.4909056]
[1765806658209,0.3081,89563.0,89562.0,0.4909056]
[1765806660414,0.3081,89563.0,89562.0,0.47974]
[1765806667710,0.3081,89563.0,89562.0,0.4909056]
[1765806668114,0.1781,89563.0,89562.0,0.4909056]
[1765806668418,0.2781,89563.0,89562.0,0.4909056]
[1765806670015,0.2781,89563.0,89562.0,0.47974]
[1765806673712,0.2781,89563.0,89562.0,0.4909056]
[1765806674622,0.2781,89563.0,89562.0,0.11894]
[1765806689953,0.13428,89559.0,89558.0,1.14991525]
[1765806690153,0.335446,89559.0,89558.0,1.13874915]
[1765806691136,0.335446,89559.0,89558.0,1.13974915]
[1765806692454,0.335446,89559.0,89558.0,1.14074915]
[1765806694146,0.335446,89559.0,89558.0,0.79358]
[1765806696851,0.335446,89559.0,89558.0,0.002]
[1765806697165,0.335446,89559.0,89558.0,0.44568]
[1765806697347,0.36088014,89559.0,89558.0,0.002]
[1765806697546,0.36088014,89559.0,89558.0,0.001]
[1765806698343,0.09504,89558.0,89557.0,0.44368]
[1765806698542,0.1062071,89550.0,89549.0,0.2232362]
[1765806698744,0.2962071,89550.0,89549.0,0.74389]
[1765806699767,0.2962071,89550.0,89549.0,0.69788]
[1765806700244,0.2962071,89550.0,89543.0,0.00016747]
[1765806700245,0.1359779,89544.0,89543.0,0.00016747]
[1765806700451,0.3059779,89544.0,89543.0,0.00016747]
[1765806700651,0.3059779,89544.0,89543.0,0.04518747]
[1765806701556,0.3059779,89544.0,89543.0,0.04618747]
[1765806701755,0.3059779,89544.0,89543.0,0.00116747]
[1765806704653,0.3059779,89544.0,89538.0,0.0022337]
[1765806704654,0.2109379,89544.0,89538.0,0.0022337]
[1765806704855,0.09504,89537.0,89536.0,9.044e-05]
[1765806705050,0.12481,89532.0,89531.0,0.74049]
[1765806705253,0.31481,89532.0,89531.0,0.74049]
[1765806705465,0.31481,89532.0,89531.0,0.75283643]
[1765806706057,0.31490044,89532.0,89531.0,0.75283643]
[1765806708466,0.31490044,89532.0,89531.0,0.79458643]
[1765806708964,0.31490044,89532.0,89531.0,0.09666643]
[1765806711464,0.31490044,89532.0,89531.0,0.09766643]
[1765806712259,0.32606984,89532.0,89531.0,0.09666643]
[1765806723866,0.32606984,89532.0,89531.0,0.09766643]